[Event "19th Lviv Tradition 2018"]
[Site "Lviv"]
[Date "2018.01.24"]
[Round "5"]
[White "Kyrychenko, Maryan"]
[Black "Bets, Anatolij"]
[Result "1-0"]
[ECO "B12"]
[WhiteElo "2254"]
[BlackElo "2266"]
[Annotator "NA"]
[PlyCount "109"]
[EventDate "2018.??.??"]
[EventType "tourn"]
[EventCountry "UKR"]
[SourceTitle "playchess.com"]
[Source "ChessBase"]
[SourceQuality "1"]
[TimeControl "5400+30"]

1. e4 {[%emt 0:00:00]} c6 {[%emt 0:02:43]} 2. d4 {[%emt 0:00:00]} d5 {[%emt 0:00:05]} 3. e5 {[%emt 0:00:00]} Bf5 {[%emt 0:00:22]} 4. Nf3 {[%emt 0:00:00]} e6 {[%emt 0:00:07]} 5. Be2 {[%emt 0:00:00]} Nd7 {[%emt 0:00:43]} 6. O-O {[%emt 0:00:00]} Ne7 {[%emt 0:00:26]} 7. Nbd2 {[%emt 0:00:09]} h6 {[%emt 0:00:49] LiveBook: 694 Games B12: Caro-Kann (Vorstoß-Variante)} 8. Nb3 {[%emt 0:00:04]} g5 {[%emt 0:11:21]} 9. Ne1 {[%emt 0:00:24]} Bg7 {[%emt 0:03:59]} 10. f4 {[%emt 0:00:31]} gxf4 {[%emt 0:01:27]} 11. Bxf4 {[%emt 0:00:05]} Qb6 {[%emt 0:09:23]} 12. a4 {[%emt 0:05:28]} a5 {[%emt 0:00:42]} 13. Kh1 {[%emt 0:01:28] [#]} O-O $146 {[%emt 0:19:09]} ({Vorgänger:} 13... h5 14. Bg5 Bg6 15. Bxe7 Kxe7 {1-0 (42) Vachier Lagrave,M (2758)-Harikrishna,P (2727) Beijing 2014}) 14. Qd2 {[%emt 0:08:36]} Kh7 {[%emt 0:01:15]} 15. Bd3 {[%emt 0:01:10]} c5 {[%emt 0:02:44]} 16. dxc5 {[%emt 0:07:00]} Nxc5 {[%emt 0:03:58]} 17. Nxc5 {[%emt 0:02:19]} Qxc5 {[%emt 0:00:07]} 18. Nf3 {[%emt 0:00:10]} Rac8 {[%emt 0:03:43]} 19. c3 {[%emt 0:01:00]} Bxd3 {[%emt 0:07:51]} 20. Qxd3+ {[%emt 0:00:41]} Ng6 {[%emt 0:00:41]} 21. Be3 {[%emt 0:17:25]} Qc4 {[%emt 0:05:04]} 22. Qxc4 {[%emt 0:00:13]} dxc4 {[%emt 0:02:03]} 23. Bb6 {[%emt 0:01:01]} Bxe5 {[%emt 0:09:45]} 24. Bxa5 {[%emt 0:01:21]} Bd6 {[%emt 0:03:17]} 25. Bb6 {[%emt 0:01:01]} Bc5 {[%emt 0:00:47]} 26. Bxc5 {[%emt 0:00:07]} Rxc5 {[%emt 0:00:02]} 27. Rad1 {[%emt 0:00:13]} Rc7 {[%emt 0:00:19]} 28. Nd4 {[%emt 0:01:49]} Ra8 {[%emt 0:00:55]} 29. Nb5 {[%emt 0:06:03]} Re7 {[%emt 0:00:29]} 30. Nd6 {[%emt 0:02:07]} Kg7 {[%emt 0:03:46]} 31. Nxc4 {[%emt 0:00:52]} Rxa4 {[%emt 0:00:25]} 32. Nd6 $11 {[%emt 0:01:09]} Ra2 {[%emt 0:01:59]} 33. Rd2 {[%emt 0:00:09]} b6 {[%emt 0:03:38]} 34. h3 {[%emt 0:01:24]} f5 {[%emt 0:00:52]} 35. Re2 {[%emt 0:01:05]} Ra8 {[%emt 0:00:37]} 36. b4 {[%emt 0:01:07]} Rd8 {[%emt 0:00:22]} 37. Rd1 {[%emt 0:01:36]} Kf8 {[%emt 0:00:35]} 38. c4 {[%emt 0:01:33]} h5 {[%emt 0:01:10]} 39. c5 {[%emt 0:00:03]} bxc5 {[%emt 0:00:12]} 40. bxc5 {[%emt 0:00:01]} h4 {[%emt 0:00:25]} 41. Rf1 {[%emt 0:00:47]} Kg7 {[%emt 0:00:23]} 42. Rd1 {[%emt 0:04:32]} Kf8 {[%emt 0:00:53]} 43. Rde1 {[%emt 0:01:56]} Nf4 {[%emt 0:00:00]} 44. Re3 {[%emt 0:00:09]} Rg7 {[%emt 0:00:14]} 45. Rf3 {[%emt 0:00:57]} Nxg2 {[%emt 0:02:29]} 46. Re2 {[%emt 0:00:03]} Rdd7 {[%emt 0:00:14]} 47. Rxg2 {[%emt 0:00:18]} Rxg2 {[%emt 0:00:04]} 48. Kxg2 {[%emt 0:00:00]} Rc7 {[%emt 0:00:02]} 49. Rc3 {[%emt 0:00:14]} Ke7 {[%emt 0:00:46]} 50. Kf3 {[%emt 0:00:25]} Rc6 {[%emt 0:00:00]} 51. Ke3 {[%emt 0:01:22]} Kf6 {[%emt 0:01:53]} 52. Kd4 {[%emt 0:00:11]} f4 {[%emt 0:00:16]} 53. Ke4 {[%emt 0:00:05]} Kg5 {[%emt 0:00:04]} 54. Nf7+ {[%emt 0:00:18]} Kf6 {[%emt 0:00:12]} 55. Ne5 {[%emt 0:00:09]} 1-0

[Event "19th Lviv Tradition 2018"]
[Site "Lviv"]
[Date "2018.01.24"]
[Round "5"]
[White "Kryvoruchko, Vita"]
[Black "Sevostianov, Pavel"]
[Result "0-1"]
[ECO "C07"]
[WhiteElo "2192"]
[BlackElo "2266"]
[Annotator "NA"]
[PlyCount "62"]
[EventDate "2018.??.??"]
[EventType "tourn"]
[EventCountry "UKR"]
[SourceTitle "playchess.com"]
[Source "ChessBase"]
[SourceQuality "1"]
[TimeControl "5400+30"]

1. e4 {[%emt 0:03:00]} e6 {[%emt 0:01:44]} 2. d4 {[%emt 0:03:11]} d5 {[%emt 0:00:18]} 3. Nd2 {[%emt 0:00:05]} c5 {[%emt 0:01:56]} 4. exd5 {[%emt 0:00:11]} Qxd5 {[%emt 0:00:03]} 5. Ngf3 {[%emt 0:00:12]} cxd4 {[%emt 0:01:52]} 6. Bc4 {[%emt 0:00:06]} Qd6 {[%emt 0:00:19]} 7. Qe2 {[%emt 0:00:07]} Nf6 {[%emt 0:01:00]} 8. Nb3 {[%emt 0:00:02]} Be7 {[%emt 0:00:48]} 9. Bg5 {[%emt 0:00:15]} Nc6 {[%emt 0:03:28]} 10. O-O-O {[%emt 0:00:08] C07: French Tarrasch: 3...c5, 4 Ngf3 and 4 exd5 Qxd5} O-O {[%emt 0:07:50]} (10... h6 11. Bh4 Qf4+ 12. Kb1 Qe4 13. Nbxd4 Qxe2 14. Bxe2 Bd7 15. Nxc6 Bxc6 16. Ne5 Ne4 17. Bxe7 Kxe7 {½-½ (73) Baklan,V (2617)-Danielsen,H (2543) Reykjavik 2011}) 11. Nbxd4 {[%emt 0:00:06]} Nxd4 {[%emt 0:00:31]} 12. Rxd4 {[%emt 0:00:13]} Qc5 {[%emt 0:02:02]} 13. Rhd1 {[%emt 0:00:50]} b5 {[%emt 0:08:30]} 14. Bxb5 {[%emt 0:03:07]} Bb7 $146 {[%emt 0:02:47]} ({Predecessor:} 14... Rb8 15. Ba4 Bb7 16. Be3 Qa5 17. Bb3 Bc6 {1-0 (48) Areshchenko,K (2195)-Sluzhbina,A (1993) Nikolaev 2003}) 15. Be3 {[%emt 0:10:03]} Bxf3 {[%emt 0:02:43]} 16. gxf3 {[%emt 0:00:08]} Qh5 {[%emt 0:02:08]} 17. f4 {[%emt 0:01:01]} Qf5 {[%emt 0:04:42]} 18. Ra4 {[%emt 0:02:13]} Nd5 {[%emt 0:09:44]} 19. Bc6 {[%emt 0:18:00]} Nxe3 {[%emt 0:03:22]} 20. fxe3 {[%emt 0:00:08]} Rab8 {[%emt 0:05:02]} 21. c3 {[%emt 0:12:14]} Rfc8 {[%emt 0:01:22]} 22. Be4 {[%emt 0:02:06]} Qc5 {[%emt 0:01:04]} 23. Rdd4 {[%emt 0:15:18]} Qb6 {[%emt 0:03:07]} 24. Rd7 {[%emt 0:04:39]} Bc5 {[%emt 0:00:45]} 25. Bxh7+ {[%emt 0:00:20]} Kf8 $16 {[%emt 0:03:29]} 26. Raxa7 {[%emt 0:08:34]} Ke8 {[%emt 0:02:48]} 27. Rxf7 {[%emt 0:01:25]} Qc6 {[%emt 0:06:31]} 28. Rad7 {[%emt 0:16:23]} Ba3 {[%emt 0:03:22]} 29. Rxg7 {[%emt 0:02:48]} Qxc3+ {[%emt 0:00:17]} 30. Bc2 {[%emt 0:00:04]} Qxb2+ {[%emt 0:01:28]} 31. Kd2 Qc3+ 0-1

[Event "19th Lviv Tradition 2018"]
[Site "Lviv"]
[Date "2018.01.24"]
[Round "5"]
[White "Medvedyk, Volodymyr"]
[Black "Kagramanianz, Vartan"]
[Result "0-1"]
[ECO "A11"]
[WhiteElo "2116"]
[BlackElo "2247"]
[Annotator "NA"]
[PlyCount "157"]
[EventDate "2018.??.??"]
[EventType "tourn"]
[EventCountry "UKR"]
[SourceTitle "playchess.com"]
[Source "ChessBase"]
[SourceQuality "1"]
[TimeControl "5400+30"]

1. c4 {[%emt 0:00:17]} c6 {[%emt 0:00:11]} 2. g3 {[%emt 0:01:09]} d5 {[%emt 0:00:09]} 3. Nf3 {[%emt 0:00:08]} Nf6 {[%emt 0:00:09]} 4. Bg2 {[%emt 0:00:08]} Bf5 {[%emt 0:00:21]} 5. cxd5 {[%emt 0:01:03]} cxd5 {[%emt 0:00:42]} 6. Qb3 {[%emt 0:02:12]} Bc8 {[%emt 0:00:13] A11: English Opening: 1...c6} (6... Nc6 7. Qxb7 Bd7 8. Qb3 Rb8 9. Qd1 e5 10. O-O e4 11. Ne1 Bc5 12. d3 h5 13. Nc3 h4 14. dxe4 hxg3 15. hxg3 Bh3 16. Bxh3 Rxh3 17. Kg2 Qc8 18. Nd3 Rh5 19. Rh1 Rxh1 20. Qxh1 {1-0 (20) Dubov,D (2648)-Goganov,A (2627) St Petersburg 2016}) 7. O-O {[%emt 0:02:26]} Nc6 {[%emt 0:00:11]} 8. d4 {[%emt 0:02:40]} e6 {[%emt 0:01:49]} 9. Nc3 {[%emt 0:07:42]} Be7 {[%emt 0:00:28]} 10. Bf4 {[%emt 0:01:36]} O-O {[%emt 0:00:15]} 11. Rac1 {[%emt 0:01:31]} Na5 {[%emt 0:04:51]} 12. Qc2 $146 {[%emt 0:03:16]} ({Predecessor:} 12. Qd1 Nc4 13. Ne5 Nd6 14. f3 {½-½ (50) Rasmussen,C (2303)-Johansen,T (2210) Gausdal 2001}) 12... Bd7 {[%emt 0:01:03]} 13. Nd2 {[%emt 0:05:13]} Rc8 {[%emt 0:02:52]} 14. Qd3 {[%emt 0:09:10]} Qb6 {[%emt 0:06:56]} 15. b3 {[%emt 0:08:08]} Ba3 {[%emt 0:05:31]} 16. Rb1 {[%emt 0:01:37]} Nc6 {[%emt 0:05:43]} 17. Nf3 {[%emt 0:06:15]} Nb4 {[%emt 0:04:19]} 18. Qe3 {[%emt 0:02:39]} Qa5 {[%emt 0:04:06]} 19. Qd2 {[%emt 0:02:33]} Nc6 {[%emt 0:13:34]} 20. Na4 {[%emt 0:08:04]} Bb4 {[%emt 0:00:31]} 21. Qb2 {[%emt 0:12:13]} b5 {[%emt 0:05:22]} 22. a3 {[%emt 0:01:27]} Be7 {[%emt 0:00:49]} 23. Nc5 {[%emt 0:03:04]} Nxd4 {[%emt 0:03:33]} 24. Nxd4 $15 {[%emt 0:03:32]} Bxc5 {[%emt 0:00:16]} 25. b4 {[%emt 0:00:46]} Bxd4 {[%emt 0:00:29]} 26. Qxd4 {[%emt 0:00:13]} Qb6 {[%emt 0:02:17]} 27. Qxb6 {[%emt 0:05:48]} axb6 {[%emt 0:00:10]} 28. Be3 {[%emt 0:03:20]} Rc6 {[%emt 0:06:44]} 29. Rfc1 {[%emt 0:00:07]} Rfc8 {[%emt 0:00:19]} 30. Rxc6 {[%emt 0:01:05]} Rxc6 {[%emt 0:00:09]} 31. Bd4 {[%emt 0:01:24]} Be8 {[%emt 0:03:57]} 32. e3 {[%emt 0:01:35]} Ne4 {[%emt 0:00:42]} 33. Bxe4 {[%emt 0:02:39]} dxe4 {[%emt 0:00:07]} 34. f4 {[%emt 0:01:26]} exf3 {[%emt 0:01:00]} 35. Kf2 {[%emt 0:00:24]} f6 {[%emt 0:00:30]} 36. Kxf3 {[%emt 0:00:36]} e5 {[%emt 0:00:13]} 37. Bb2 {[%emt 0:00:31]} Rc2 {[%emt 0:00:43]} 38. h3 {[%emt 0:00:29]} Kf7 {[%emt 0:03:00]} 39. e4 {[%emt 0:00:29]} h5 {[%emt 0:01:27]} 40. Bc1 {[%emt 0:00:31]} Bc6 {[%emt 0:00:22]} 41. g4 {[%emt 0:00:31]} Rc4 {[%emt 0:00:21]} 42. Ra1 {[%emt 0:00:30]} Rxe4 {[%emt 0:01:07]} 43. Kg3 {[%emt 0:00:27]} hxg4 {[%emt 0:02:00]} 44. hxg4 {[%emt 0:00:01]} Re1 {[%emt 0:00:52]} 45. Bb2 {[%emt 0:00:58]} Re2 {[%emt 0:00:14]} 46. Rc1 {[%emt 0:00:28]} Bd5 {[%emt 0:00:58]} 47. Rc7+ {[%emt 0:00:19]} Kg6 {[%emt 0:00:35]} 48. Bc1 {[%emt 0:00:24]} Rg2+ {[%emt 0:02:11]} 49. Kh3 {[%emt 0:00:16]} Rg1 {[%emt 0:00:32]} 50. Be3 {[%emt 0:00:30]} Ra1 {[%emt 0:00:29]} 51. Rc3 {[%emt 0:00:27]} Rb1 {[%emt 0:02:55]} 52. Bxb6 {[%emt 0:00:48]} Rb3 {[%emt 0:00:07]} 53. Rxb3 {[%emt 0:00:24]} Bxb3 {[%emt 0:00:02]} 54. Kg3 {[%emt 0:00:58]} Kf7 {[%emt 0:00:18]} 55. Kf2 {[%emt 0:00:31]} g6 {[%emt 0:00:38]} 56. Bc7 {[%emt 0:00:29]} Ke6 {[%emt 0:00:07]} 57. Bb6 {[%emt 0:00:32]} Bd1 {[%emt 0:00:21]} 58. Kg3 {[%emt 0:00:26]} Kd5 {[%emt 0:00:31]} 59. Bd8 {[%emt 0:00:29]} f5 {[%emt 0:00:09]} 60. gxf5 {[%emt 0:00:24]} gxf5 {[%emt 0:00:02]} 61. Bc7 {[%emt 0:00:31]} Ke4 {[%emt 0:00:25]} 62. Bb8 {[%emt 0:00:39]} f4+ {[%emt 0:00:20]} 63. Kf2 {[%emt 0:00:03]} Kf5 {[%emt 0:00:26]} 64. Ke1 {[%emt 0:00:56]} Bb3 {[%emt 0:00:11]} 65. Kf2 {[%emt 0:00:30]} e4 {[%emt 0:00:21]} 66. Ba7 {[%emt 0:00:29]} e3+ {[%emt 0:00:16]} 67. Kf3 {[%emt 0:00:17]} Bd1+ {[%emt 0:00:09]} 68. Kg2 {[%emt 0:00:08]} Ke4 {[%emt 0:00:30]} 69. Kf1 {[%emt 0:00:18]} Bb3 {[%emt 0:00:12]} 70. Bb8 {[%emt 0:01:05]} f3 {[%emt 0:00:13]} 71. Bg3 {[%emt 0:00:17]} Bc4+ {[%emt 0:00:59]} 72. Ke1 {[%emt 0:00:12]} f2+ {[%emt 0:00:08]} 73. Bxf2 {[%emt 0:00:03]} exf2+ {[%emt 0:00:07]} 74. Kxf2 {[%emt 0:00:01]} Kd3 {[%emt 0:00:31]} 75. Kf3 {[%emt 0:00:41]} Kc3 {[%emt 0:00:19]} 76. Ke3 {[%emt 0:00:07]} Kb3 {[%emt 0:00:09]} 77. Kd4 {[%emt 0:00:12]} Kxa3 {[%emt 0:00:12]} 78. Kc3 {[%emt 0:00:03]} Bb3 {[%emt 0:00:15]} 79. Kd4 0-1

[Event "19th Lviv Tradition 2018"]
[Site "Lviv"]
[Date "2018.01.25"]
[Round "6"]
[White "Sevostianov, Pavel"]
[Black "Mosesov, Danylo"]
[Result "1/2-1/2"]
[ECO "A05"]
[WhiteElo "2266"]
[BlackElo "2294"]
[Annotator "RC"]
[PlyCount "98"]
[EventDate "2018.??.??"]
[EventType "tourn"]
[EventCountry "UKR"]
[SourceTitle "playchess.com"]
[Source "ChessBase"]
[SourceQuality "1"]
[TimeControl "5400+30"]

1. Nf3 {[%emt 0:00:06]} Nf6 {[%emt 0:00:05]} 2. g3 {[%emt 0:00:18]} b5 {[%emt 0:00:25]} 3. Bg2 {[%emt 0:01:17]} Bb7 {[%emt 0:00:10]} 4. O-O {[%emt 0:00:11]} e6 {[%emt 0:00:10]} 5. d3 {[%emt 0:00:32]} c5 {[%emt 0:01:16]} 6. e4 {[%emt 0:00:35]} d6 {[%emt 0:00:24]} 7. Ng5 {[%emt 0:02:07]} h6 {[%emt 0:03:45]} 8. Nh3 {[%emt 0:00:00]} Nbd7 {[%emt 0:00:48]} 9. f4 {[%emt 0:00:13]} Be7 {[%emt 0:05:33]} 10. Nd2 {[%emt 0:01:19]} Qc7 {[%emt 0:03:14]} 11. Nf3 {[%emt 0:02:10]} O-O {[%emt 0:01:25]} 12. Nf2 {[%emt 0:00:36]} e5 {[%emt 0:04:02]} 13. Nh4 {[%emt 0:00:42]} Rfe8 {[%emt 0:01:25]} 14. Nf5 {[%emt 0:03:59]} Bf8 {[%emt 0:00:11]} 15. Ng4 {[%emt 0:00:25]} Re6 {[%emt 0:05:34]} 16. Nge3 {[%emt 0:03:38]} c4 {[%emt 0:02:03]} 17. a4 {[%emt 0:05:16]} a6 {[%emt 0:02:09]} 18. axb5 {[%emt 0:04:31]} axb5 {[%emt 0:00:05]} 19. Rxa8 {[%emt 0:00:05]} Bxa8 {[%emt 0:00:05]} 20. Bd2 {[%emt 0:00:36]} Qc5 {[%emt 0:04:09]} 21. Kh1 {[%emt 0:01:17]} Bb7 {[%emt 0:08:52]} 22. Qe1 {[%emt 0:03:03]} Qc8 {[%emt 0:04:34]} 23. b4 {[%emt 0:04:26]} cxb3 {[%emt 0:02:07]} 24. cxb3 {[%emt 0:00:01]} Nc5 {[%emt 0:00:08]} 25. Qb1 {[%emt 0:00:10]} Qa8 {[%emt 0:03:18]} 26. b4 {[%emt 0:00:42]} Na4 {[%emt 0:04:05]} 27. Rf2 {[%emt 0:05:17]} Kh8 {[%emt 0:02:31]} 28. Qf1 {[%emt 0:04:17]} Qd8 {[%emt 0:01:25]} 29. Bh3 {[%emt 0:06:41]} exf4 {[%emt 0:06:16]} 30. gxf4 {[%emt 0:01:36]} Re8 {[%emt 0:03:16]} 31. Bg2 {[%emt 0:01:23]} Kh7 {[%emt 0:04:57]} 32. Qb1 {[%emt 0:01:44]} g6 {[%emt 0:02:38]} 33. Ng3 {[%emt 0:00:22]} Bg7 {[%emt 0:00:07]} 34. d4 {[%emt 0:01:57]} Qb6 {[%emt 0:02:14]} 35. e5 {[%emt 0:05:06]} Bxg2+ 36. Rxg2 {[%emt 0:00:14]} dxe5 {[%emt 0:02:09]} 37. fxe5 {[%emt 0:02:56]} Qxd4 {[%emt 0:05:19]} 38. exf6 {[%emt 0:00:13]} Bxf6 {[%emt 0:00:01]} 39. Qb3 {[%emt 0:01:34]} Re6 {[%emt 0:00:44]} 40. Qd5 {[%emt 0:11:41]} Qb6 {[%emt 0:02:16]} 41. Ne4 {[%emt 0:00:37]} Bg7 {[%emt 0:00:05]} 42. Nc5 {[%emt 0:01:58]} Nxc5 {[%emt 0:02:34]} 43. bxc5 {[%emt 0:00:16]} Qa6 {[%emt 0:00:11]} 44. Rf2 {[%emt 0:00:30]} f5 {[%emt 0:01:06]} 45. Nc2 {[%emt 0:02:17]} Re4 {[%emt 0:01:43]} 46. Qd7 Rc4 {[%emt 0:01:24]} 47. Be3 {[%emt 0:07:12]} Qa8+ {[%emt 0:01:25]} 48. Kg1 {[%emt 0:00:42]} Qe4 {[%emt 0:01:58]} 49. Bd4 {[%emt 0:02:47]} Qg4+ {[%emt 0:00:10]} 1/2-1/2

[Event "19th Lviv Tradition 2018"]
[Site "Lviv"]
[Date "2018.01.25"]
[Round "7"]
[White "Molchanov, Oleksii"]
[Black "Sevostianov, Pavel"]
[Result "1-0"]
[ECO "C92"]
[WhiteElo "2329"]
[BlackElo "2266"]
[Annotator "NA"]
[PlyCount "83"]
[EventDate "2018.??.??"]
[EventType "tourn"]
[EventCountry "UKR"]
[SourceTitle "playchess.com"]
[Source "ChessBase"]
[SourceQuality "1"]
[TimeControl "5400+30"]

1. e4 {[%emt 0:01:01]} e5 {[%emt 0:01:05]} 2. Nf3 {[%emt 0:00:50]} Nc6 {[%emt 0:00:24]} 3. Bb5 {[%emt 0:01:11]} a6 {[%emt 0:01:37]} 4. Ba4 {[%emt 0:00:14]} Nf6 {[%emt 0:01:03]} 5. O-O {[%emt 0:00:46]} Be7 {[%emt 0:01:27]} 6. Re1 {[%emt 0:00:19]} b5 {[%emt 0:01:32]} 7. Bb3 {[%emt 0:00:13]} d6 {[%emt 0:00:25]} 8. c3 {[%emt 0:01:30]} O-O {[%emt 0:01:39]} 9. h3 {[%emt 0:01:12]} Re8 {[%emt 0:01:44]} 10. d4 {[%emt 0:03:25]} Bb7 {[%emt 0:01:50]} 11. Nbd2 {[%emt 0:02:00]} Bf8 {[%emt 0:01:55]} 12. Bc2 {[%emt 0:02:18]} h6 {[%emt 0:02:07]} 13. a4 {[%emt 0:00:01]} exd4 {[%emt 0:00:02]} 14. cxd4 {[%emt 0:01:37]} Nb4 {[%emt 0:00:45]} 15. Bb1 {[%emt 0:00:52]} c5 {[%emt 0:01:27]} 16. d5 {[%emt 0:00:39]} Nd7 {[%emt 0:02:14]} 17. Ra3 {[%emt 0:03:02]} f5 {[%emt 0:02:25]} 18. g4 {[%emt 0:08:03]} fxg4 {[%emt 0:03:23]} 19. hxg4 {[%emt 0:00:21]} c4 {[%emt 0:01:57]} 20. Ree3 {[%emt 0:05:51]} Qf6 {[%emt 0:02:08]} 21. Ne1 {[%emt 0:05:13]} Nc5 {[%emt 0:01:24]} 22. Rh3 {[%emt 0:03:39]} (22. Nf1 $11 {remains equal.}) 22... g6 {[%emt 0:01:55]} 23. Rae3 {[%emt 0:01:36]} Qd4 {[%emt 0:04:11]} 24. Qe2 {[%emt 0:02:11]} Bc8 {[%emt 0:00:53]} 25. Rhg3 {[%emt 0:01:48]} Qg7 {[%emt 0:05:07]} 26. b3 {[%emt 0:15:47]} c3 {[%emt 0:04:45]} 27. a5 {[%emt 0:00:43]} Be7 {[%emt 0:01:43] [#]} 28. Ba3 $1 {[%emt 0:01:42]} ({Much worse is} 28. Rxc3 Bh4 $11) 28... cxd2 {[%emt 0:02:13]} 29. Qxd2 {[%emt 0:00:18]} Bg5 {[%emt 0:02:18]} 30. Bxb4 {[%emt 0:03:04]} Bf4 {[%emt 0:01:28]} ({Better is} 30... Bxe3 $14 31. Qxe3 g5) 31. Bc3 {[%emt 0:01:32]} Qf7 {[%emt 0:01:32]} 32. Qd4 {[%emt 0:03:03]} Be5 {[%emt 0:01:10] [#]} 33. Qb4 $1 {[%emt 0:01:34]} Bxg3 {[%emt 0:03:02]} 34. Rxg3 {[%emt 0:00:26]} Kh7 {[%emt 0:02:27]} 35. Ng2 {[%emt 0:01:03]} Kg8 {[%emt 0:01:23]} 36. e5 {[%emt 0:02:50]} Qxd5 {[%emt 0:00:33]} 37. Bxg6 {[%emt 0:00:16]} Re6 {[%emt 0:00:22]} 38. Bc2 $18 {[%emt 0:01:57]} (38. Nf4 $2 Qd1+ 39. Be1 Rxe5 $19) 38... Bb7 {[%emt 0:02:43]} 39. g5 {[%emt 0:01:18]} h5 {[%emt 0:04:03]} 40. Qh4 {[%emt 0:00:36]} Rxe5 {[%emt 0:00:19]} 41. Qxh5 {[%emt 0:00:22]} Qf7 {[%emt 0:00:07]} 42. Qh6 {[%emt 0:01:35]} 1-0

[Event "19th Lviv Tradition 2018"]
[Site "Lviv"]
[Date "2018.01.25"]
[Round "7"]
[White "Mosesov, Danylo"]
[Black "Kagramanianz, Vartan"]
[Result "1/2-1/2"]
[ECO "D10"]
[WhiteElo "2294"]
[BlackElo "2247"]
[Annotator "NA"]
[PlyCount "60"]
[EventDate "2018.??.??"]
[EventType "tourn"]
[EventCountry "UKR"]
[SourceTitle "playchess.com"]
[Source "ChessBase"]
[SourceQuality "1"]
[TimeControl "5400+30"]

1. d4 {[%emt 0:00:19]} d5 {[%emt 0:00:12]} 2. c4 {[%emt 0:00:06]} c6 {[%emt 0:00:04]} 3. cxd5 {[%emt 0:00:03]} cxd5 {[%emt 0:00:05]} 4. Nc3 {[%emt 0:00:03]} Nf6 {[%emt 0:00:07] LiveBook: 5188 Games} 5. Bf4 {[%emt 0:00:05]} a6 {[%emt 0:00:03]} 6. e3 {[%emt 0:00:39]} Nc6 {[%emt 0:00:10]} 7. Bd3 {[%emt 0:00:04]} Bg4 {[%emt 0:02:07]} 8. Nge2 {[%emt 0:00:35]} e6 {[%emt 0:01:21]} 9. O-O {[%emt 0:00:06]} Be7 {[%emt 0:01:31]} 10. Rc1 {[%emt 0:01:22]} Bh5 {[%emt 0:01:20] D10: Damengambit (Slawische Verteidigung)} 11. a3 {[%emt 0:00:54]} Bg6 {[%emt 0:00:52]} 12. b4 {[%emt 0:01:14]} O-O {[%emt 0:07:30]} 13. Na4 {[%emt 0:02:10]} Nh5 $146 {[%emt 0:05:07]} ({Vorgänger:} 13... Nd7 14. Bg3 Bxd3 15. Qxd3 Rc8 16. Nc5 Nxc5 17. dxc5 b6 18. Qxa6 bxc5 19. bxc5 {½-½ (149) Prohaszka,P (2583)-Neuman,P (2499) Germany 2013}) 14. h3 {[%emt 0:02:39]} Bxd3 {[%emt 0:01:59]} 15. Qxd3 {[%emt 0:00:12]} Nxf4 {[%emt 0:00:35]} 16. Nxf4 {[%emt 0:00:05]} Bd6 {[%emt 0:00:55]} 17. Ne2 {[%emt 0:01:33]} Qe7 {[%emt 0:03:35]} 18. Rc3 {[%emt 0:05:46]} Na7 {[%emt 0:10:16]} 19. Rfc1 {[%emt 0:02:32]} Nb5 {[%emt 0:04:02]} 20. R3c2 {[%emt 0:00:21]} Rad8 {[%emt 0:00:43]} 21. Nc5 {[%emt 0:04:11]} Bb8 {[%emt 0:01:41]} 22. a4 {[%emt 0:09:19]} Nd6 {[%emt 0:00:40]} 23. a5 {[%emt 0:00:18]} Kh8 {[%emt 0:13:54]} 24. Rb1 {[%emt 0:12:05]} Rc8 {[%emt 0:05:07]} 25. Rbc1 {[%emt 0:04:19]} Rcd8 {[%emt 0:01:16]} 26. Rb1 {[%emt 0:00:20]} Rc8 {[%emt 0:00:12]} 27. Rbc1 {[%emt 0:00:04]} Rcd8 {[%emt 0:00:05]} 28. Rb1 {[%emt 0:00:03]} Rc8 {[%emt 0:00:29]} 29. Rbc1 {[%emt 0:00:04]} Rcd8 $11 {[%emt 0:00:05]} 30. Rb1 {[%emt 0:00:04]} Rc8 {[%emt 0:00:06]} 1/2-1/2